Cogmind - Beta 13 *** ADVENTURER MODE // 2024.04.04 @ 15:02:24 Player: jemps Result: Self-destructed Performance ------------- Evolutions (3) 1500 Regions Visited (4) 800 Robots Destroyed (101) 505 Value Destroyed (3263) 3263 Prototype IDs (2) 40 Alien Tech Used (0) 0 Bonus (176) 176 TOTAL SCORE: 6284 Bonus ------- High Alert Combat Kills 176 Cogmind --------- Core Integrity 429/700 Matter 72/400 Energy 60/100 System Corruption 3% Temperature Cool (15) Movement Walking (330) Ox3 Location -7/Factory Parts ------- > --- POWER (1) -------- (None) > --- PROPULSION (4) --- Aluminum Leg Carbon-fiber Leg > --- UTILITY (5) ------ Huge Storage Unit Medium Matter Pod Advanced Terrain Scan Processor Advanced Targeting Computer Advanced Targeting Computer > --- WEAPON (3) ------- Shock Bomb Launcher Rocket Launcher > --- INVENTORY (25) --- Light Ion Engine Improved Ion Engine Improved Ion Engine Light Nuclear Core Light Nuclear Core Light Nuclear Core Flight Unit Heat Sink Improved Heat Sink Improved Heat Sink High-capacity Storage Unit Large Battery (200) Medium Matter Pod (0) Improved Terrain Scanner Seismic Detector Salvage Targeting Computer Improved Light Armor Plating Insulated Plating Insulated Plating Dynamic Insulation System Peak State ------------ > --- POWER ------------ Light Nuclear Core > --- PROPULSION ------- Aluminum Leg Carbon-fiber Leg Carbon-fiber Leg Carbon-fiber Leg > --- UTILITY ---------- Huge Storage Unit Improved Terrain Scanner Advanced Terrain Scan Processor Advanced Targeting Computer Advanced Targeting Computer > --- WEAPON ----------- Field Laser Advanced Assault Cannon Heavy Missile Launcher > --- INVENTORY -------- Improved Ion Engine Improved Ion Engine Nuclear Core Light Nuclear Core Light Nuclear Core Aluminum Leg Aluminum Leg Aluminum Leg Flight Unit Heat Sink Improved Heat Sink Improved Heat Sink High-capacity Storage Unit Large Battery Medium Matter Pod Medium Matter Pod Seismic Detector Improved Light Armor Plating Insulated Plating Insulated Plating Insulated Plating Shock Bomb Launcher Rocket Launcher Rocket Launcher Rocket Launcher [Rating: 43] Favorites ----------- Power Light Deuterium Engine Engine Light Deuterium Engine Power Core Light Nuclear Core Propulsion Aluminum Leg Leg Aluminum Leg Utility High-capacity Storage Unit Device Shield Generator Storage High-capacity Storage Unit Processor Advanced Targeting Computer Protection Improved Light Armor Plating Weapon Field Laser Energy Gun Field Laser Ballistic Gun Minigun Ballistic Cannon Advanced Assault Cannon Launcher Rocket Launcher Build | -11 -10 -9 -8 -7 ------- Run | Yrd Mat Mat Mat Fac Slots Evolved 6 | . . 2 2 2 Power . | . . . . . Propulsion 2 | . . 2 . . Utility 3 | . . . 2 1 Weapon 1 | . . . . 1 Parts Attached 106 | 7 10 12 38 39 Power 12 | 2 1 2 5 2 Engine 9 | 2 1 1 5 . Core 3 | . . 1 . 2 Reactor . | . . . . . Propulsion 22 | 2 1 5 5 9 Treads . | . . . . . Leg 22 | 2 1 5 5 9 Wheel . | . . . . . Hover . | . . . . . Flight . | . . . . . Utility 47 | 1 3 3 23 17 Device 26 | 1 1 3 14 7 Storage 9 | . 2 . 3 4 Processor 6 | . . . 1 5 Hackware . | . . . . . Protection 6 | . . . 5 1 Artifact . | . . . . . Weapon 25 | 2 5 2 5 11 Energy Gun 11 | . 5 2 3 1 Energy Cannon . | . . . . . Ballistic Gun 3 | 2 . . . 1 Ballistic Cannon 1 | . . . . 1 Launcher 10 | . . . 2 8 Special Weapon . | . . . . . Impact Weapon . | . . . . . Slashing Weapon . | . . . . . Piercing Weapon . | . . . . . Special Melee Weapon . | . . . . . Unidentified Prototypes . | . . . . . Parts Lost 24 | . . . 7 17 Power 3 | . . . . 3 Propulsion 9 | . . . 2 7 Utility 4 | . . . 4 . Weapon 8 | . . . 1 7 Highest Loss Streak 8 | . . . 2 8 To Critical Strikes . | . . . . . Average Slot Usage (%) 98 | . 98 100 99 96 Engine 6 | . 14 8 6 2 Core 3 | . . 2 2 4 Leg 34 | . 28 44 35 28 Device 12 | . 12 11 18 7 Storage 9 | . 14 11 9 8 Processor 5 | . . . . 18 Protection 4 | . . . 7 3 Energy Gun 16 | . 24 22 16 9 Ballistic Cannon 1 | . . . . 4 Launcher 1 | . . . 1 4 Naked Turns . | . . . . . Heaviest Build 104 | 8 55 55 98 104 Greatest Support 55 | 20 20 40 40 55 Greatest Overweight (x) 2 | . 2 1 2 2 Average Overweight (x) 1 | . . 1 1 1 Largest Inventory Capacity 25 | 5 20 20 25 25 Average Capacity 20 | 5 9 20 21 25 Most Carried 25 | 5 8 20 25 25 Average Carried 19 | 2 5 18 21 24 Final Capacity 25 | 5 20 20 25 25 Final Carried 25 | 5 8 20 25 20 Class Distribution -------------------- 41% | Scavenger-Mutant 31% | Mutant 17% | Gunner 7% | Skirmisher Dominant Class ---------------- Mutant | -10/Materials Mutant | -9/Materials Scavenger-Mutant | -8/Materials Gunner | -7/Factory Resources | -11 -10 -9 -8 -7 ----------- Run | Yrd Mat Mat Mat Fac Matter Collected 1787 | 282 150 250 404 701 Remotely . | . . . . . Salvage Created 3386 | 38 164 571 1040 1573 Parts 164 | 4 10 35 44 71 Haulers Intercepted 2 | . . . . 2 Recyclers Shooed 1 | . . . . 1 Parts Field Recycled . | . . . . . Retrieved Matter . | . . . . . Parts Self-Destructed . | . . . . . Prevented . | . . . . . Kills | -11 -10 -9 -8 -7 ------- Run | Yrd Mat Mat Mat Fac Combat Hostiles Destroyed 79 | 1 6 14 26 32 Guns 47 | 1 6 13 20 7 Cannons 9 | . . . . 9 AOE 20 | . . . 5 15 Classes Destroyed 12 | 1 1 5 1 4 Worker 5 | . . 1 1 3 Builder 6 | . . 1 . 5 Tunneler 1 | . . 1 . . Hauler 2 | . . . . 2 Recycler 6 | . . . . 6 Watcher 2 | . . 1 . 1 Swarmer 18 | . 3 4 7 4 Grunt 45 | 1 3 8 13 20 Brawler 3 | . . . 3 . Sentry 9 | . . 2 3 4 Hunter 1 | . . . . 1 Programmer 3 | . . . . 3 Best Kill Streak 12 | 1 6 4 7 12 Combat Bots Only 7 | 1 6 4 7 5 Max Kills in Single Turn 4 | 1 1 2 2 4 Gunslinging 1 | . . 1 . . Exploded 3 | . . . 2 3 Melee . | . . . . . Uniques/NPCs Destroyed . | . . . . . Combat | -11 -10 -9 -8 -7 -------- Run | Yrd Mat Mat Mat Fac Hostile Shots Fired 580 | 4 19 49 138 370 Missed 194 | 2 3 13 40 136 Damage Taken 3444 | 17 107 267 1090 1963 Core 487 | . 18 30 168 271 Absorbed by Shields 167 | . . 74 93 . Ignored by Resistances 1096 | 5 35 102 342 612 Regen/Repaired (Parts) 70 | . . 55 15 . Core Remaining (%) 88 | 100 92 92 69 . Volleys Fired 214 | 6 10 35 78 85 Largest 3 | 2 2 2 2 3 Hottest 174 | 40 100 130 126 174 Shots Fired 399 | 12 20 70 135 162 Gun 304 | 12 20 70 125 77 Cannon 52 | . . . . 52 Launcher 43 | . . . 10 33 Special . | . . . . . Kinetic 82 | 12 . . . 70 Thermal 274 | . 20 70 125 59 Explosive 41 | . . . 10 31 Electromagnetic 2 | . . . . 2 Robot Hit Streak 57 | 6 14 21 24 57 Robot Miss Streak 4 | 4 1 3 3 1 Penetration Max . | . . . . . Secondary Targets 3 | . . 1 2 . Max Gunslinging Chain 1 | . . 1 1 . Shots Hit Robots 317 | 8 17 51 104 137 Core Hits 175 | 3 9 29 46 88 Critical Kills . | . . . . . Critical Parts Destroyed . | . . . . . Critical Strikes 14 | . 1 3 3 7 Burn 11 | . 1 3 3 4 Blast 3 | . . . . 3 Melee Attacks . | . . . . . Impact . | . . . . . Slashing . | . . . . . Piercing . | . . . . . Sneak Attacks . | . . . . . Combat Hostiles . | . . . . . Follow-up Attacks . | . . . . . Damage Inflicted 8645 | 66 212 902 2219 5246 Guns 4187 | 66 212 902 1730 1277 Cannons 1246 | . . . . 1246 Explosions 3188 | . . . 484 2704 Melee . | . . . . . Ramming 24 | . . . 5 19 Kinetic 1602 | 66 . . . 1536 Thermal 3831 | . 212 902 1730 987 Explosive 3141 | . . . 484 2657 Electromagnetic 47 | . . . . 47 Impact . | . . . . . Slashing . | . . . . . Piercing . | . . . . . Highest Corruption 3 | . . 2 . 3 Average Corruption 1 | . . 1 . 1 Corruption Purged . | . . . . . Corruption Blocked . | . . . . . Effects 1 | . . 1 . . Message Errors 1 | . . 1 . . Overload Shots . | . . . . . Overflow Damage 90 | . . . 8 82 Projectiles 24 | . . . . 24 Explosions 66 | . . . 8 58 Melee . | . . . . . Knockbacks 18 | . . . 1 17 Impact 2 | . . . 1 1 Kinetic 14 | . . . . 14 Secondary 2 | . . . . 2 Self-Inflicted Damage 78 | . . . 22 56 Shots 3 | . . . 1 2 Rammed . | . . . . . Targets Rammed 5 | . . . 1 4 Kicked 5 | . . . 1 4 Crushed . | . . . . . Highest Temperature 455 | 6 90 455 364 371 Average Temperature 109 | 6 36 118 109 112 Received Heat Transfer 1636 | 12 48 134 605 837 Effects 14 | . . 2 5 7 Shutdowns 2 | . . 2 . . Energy Bleed 1 | . . . 1 . Interference 9 | . . . 3 6 Damage (minor) 2 | . . . 1 1 Siege Activations . | . . . . . Robots Corrupted . | . . . . . Combat Hostiles . | . . . . . Parts Fried . | . . . . . Impact Corruptions . | . . . . . Robots Melted 3 | . . 1 1 1 Combat Hostiles 3 | . . 1 1 1 Parts Melted 25 | . 2 7 10 6 Heat Transferred 9085 | . 703 2018 3996 2368 Parts Sabotaged . | . . . . . Parts Stolen . | . . . . . Parts Stripped . | . . . . . Power Chain Reactions . | . . . . . Alert | -11 -10 -9 -8 -7 ------- Run | Yrd Mat Mat Mat Fac Peak Influence 864 | 20 172 311 257 864 Initial 100 | . 11 61 58 100 Average 172 | 5 117 134 142 261 Maximum Alert Level 3 | . . 1 1 3 Low Security (%) 68 | 100 100 89 58 55 Level 1 24 | . . 10 41 23 Level 2 2 | . . . . 9 Level 3 3 | . . . . 11 Level 4 . | . . . . . Level 5 . | . . . . . High Security . | . . . . . Max Security . | . . . . . Squads Dispatched 19 | . 1 1 2 15 Investigation 6 | . 1 1 1 3 Extermination 3 | . . . . 3 Reinforcement 5 | . . . 1 4 Assault . | . . . . . Garrison 5 | . . . . 5 Intercept . | . . . . . Searches Triggered . | . . . . . Construction Impeded 3 | . . . . 3 Haulers Reinforced 1 | . . . . 1 Active Scanning Responses . | . . . . . Cargo Convoy Interrupts 1 | . . . . 1 Stealth | -11 -10 -9 -8 -7 --------- Run | Yrd Mat Mat Mat Fac Distress Signals 7 | . 1 2 3 1 Communications Jammed . | . . . . . Distress Signals . | . . . . . Times Spotted 107 | 1 9 20 37 40 Peak Tracking Total 8 | 1 3 4 7 8 Tactical Retreats 7 | . . 3 1 3 Traps | -11 -10 -9 -8 -7 ------- Run | Yrd Mat Mat Mat Fac Traps Triggered 3 | . . 2 1 . Indirectly . | . . . . . Trap Hack Attempts . | . . . . . Triggered . | . . . . . Disarmed 1 | . . . . 1 Reprogrammed . | . . . . . Reused . | . . . . . Traps Extracted . | . . . . . Installed . | . . . . . Triggered 2 | . . . . 2 Machines | -11 -10 -9 -8 -7 ---------- Run | Yrd Mat Mat Mat Fac Machines Disabled 11 | . . . 1 10 Max in Single Turn 5 | . . . 1 5 Machines Repaired . | . . . . . Machines Dismantled . | . . . . . Machines Sabotaged . | . . . . . Overloaded Fab Kills . | . . . . . Hacking | -11 -10 -9 -8 -7 --------- Run | Yrd Mat Mat Mat Fac Machines Accessed 19 | . 2 4 9 4 Terminals 13 | . 2 2 6 3 Fabricators . | . . . . . Repair Stations 2 | . . 1 1 . Recycling Units 1 | . . . 1 . Scanalyzers 2 | . . 1 1 . Garrison Access 1 | . . . . 1 Total Hacks 81 | . 6 26 40 9 Successful 60 | . 4 21 31 4 Failed 21 | . 2 5 9 5 Catastrophic 2 | . . 1 . 1 Database Lockouts . | . . . . . Manual . | . . . . . Terminals 47 | . 6 14 20 7 Fabricators . | . . . . . Repair Stations 8 | . . 6 2 . Recycling Units 2 | . . . 2 . Scanalyzers 22 | . . 6 16 . Garrison Access 2 | . . . . 2 Terminal Hacks 28 | . 4 9 11 4 Record 8 | . 1 6 1 . Prototype ID Bank 1 | . . 1 . . Branch Access Points 1 | . . 1 . . Emergency Access Points 2 | . . . 1 1 Repair Station Index 1 | . . . 1 . Alert Level 1 | . 1 . . . Locate Traps 2 | . . . 1 1 Disarm Traps 1 | . . . . 1 Dispatch Records 1 | . . . 1 . Maintenance Status 1 | . . 1 . . Patrol Status 2 | . . . 2 . Reinforcement Status 1 | . . . 1 . Recall Investigation 1 | . 1 . . . Recall Reinforcements 1 | . . . 1 . Recall Assault 1 | . . . 1 . Zone Layout 3 | . 1 . 1 1 Fabricator Hacks . | . . . . . Repair Station Hacks 8 | . . 6 2 . Scan Component 4 | . . 3 1 . Repair 4 | . . 3 1 . Recycling Unit Hacks 2 | . . . 2 . Report Inventory 1 | . . . 1 . Retrieve Matter 1 | . . . 1 . Scanalyzer 22 | . . 6 16 . Insert Component 10 | . . 3 7 . Analyze 12 | . . 3 9 . Garrison Access Hacks . | . . . . . Unauthorized Hacks . | . . . . . Terminals . | . . . . . Fabricators . | . . . . . Repair Stations . | . . . . . Recycling Units . | . . . . . Scanalyzers . | . . . . . Garrison Access . | . . . . . Data Cores Recovered . | . . . . . Used . | . . . . . Hacking Detections 18 | . 2 4 8 4 Full Trace Events 9 | . 2 2 2 3 Feedback Events . | . . . . . Feedback Blocked . | . . . . . Robot Schematics Acquired . | . . . . . Robots Built . | . . . . . Authchips . | . . . . . Time . | . . . . . Total Robot Build Rating . | . . . . . Part Schematics Acquired 10 | . . 3 7 . Parts Built . | . . . . . Authchips . | . . . . . Time . | . . . . . Total Part Build Rating . | . . . . . Parts Repaired 4 | . . 3 1 . Time 109 | . . 90 19 . Parts Recycled . | . . . . . Recycled Matter . | . . . . . Retrieved Matter . | . . . . . Retrieved Components . | . . . . . Parts Scanalyzed 10 | . . 3 7 . Part Schematics Acquired 10 | . . 3 7 . Parts Damaged 1 | . . . 1 . Bothacking | -11 -10 -9 -8 -7 ------------ Run | Yrd Mat Mat Mat Fac Used RIF Installer . | . . . . . Robots Hacked . | . . . . . Non-combat . | . . . . . Combat . | . . . . . Robot Hacks Applied . | . . . . . Relay Couplers Released . | . . . . . Fabnet Peak Effective % . | . . . . . Robots Rewired . | . . . . . Allies Hacked . | . . . . . Hacks Repelled . | . . . . . Allies | -11 -10 -9 -8 -7 -------- Run | Yrd Mat Mat Mat Fac Total Allies . | . . . . . Largest Group . | . . . . . Highest-Rated Group . | . . . . . Highest-Rated Ally . | . . . . . Total Orders . | . . . . . Ally Attacks . | . . . . . Total Damage . | . . . . . Kills . | . . . . . Allies Corrupted . | . . . . . Allies Melted . | . . . . . Intel | -11 -10 -9 -8 -7 ------- Run | Yrd Mat Mat Mat Fac Robot Analysis Total . | . . . . . Derelict Logs Recovered . | . . . . . Drone Launches . | . . . . . Drone Recoveries . | . . . . . Exploration | -11 -10 -9 -8 -7 ------------- Run | Yrd Mat Mat Mat Fac Turns Passed 4297 | 115 366 912 1547 1357 Spaces Moved 1606 | 79 192 319 536 480 Core 23 | 23 . . . . Treads . | . . . . . Legs 1583 | 56 192 319 536 480 Wheels . | . . . . . Hover . | . . . . . Flight . | . . . . . Fastest Speed 50 | 50 120 190 190 190 Average Speed 192 | 99 149 190 211 204 Slowest Speed 260 | 120 260 190 260 260 Overloaded Moves . | . . . . . Propulsion Burnouts . | . . . . . Robots Hopped . | . . . . . Cave-ins Triggered . | . . . . . Exploration Rate (%) 24 | 7 27 29 44 13 Regions Visited 4 Branch Regions . Pre-discovered Areas . | . . . . . Known Exits Taken . | . . . . . Unknown Exits Taken 4 | 1 1 1 1 . Scrap Searched . | . . . . . Spaces Dug 38 | . . . 38 . Terrain Destroyed 236 | . . . 64 172 Melee . | . . . . . Projectile 2 | . . . . 2 AOE 234 | . . . 64 170 Terrain Rammed . | . . . . . Walls Destroyed . | . . . . . Machines Disabled . | . . . . . Actions | -11 -10 -9 -8 -7 --------- Run | Yrd Mat Mat Mat Fac Total 2433 | 106 258 559 810 700 Wait 349 | . 14 153 122 60 Move 1602 | 78 191 318 535 480 Hop . | . . . . . Pick Up 108 | 13 18 29 26 22 Fast Attach 1 | . 1 . . . Attach 43 | 6 4 3 13 17 Detach 1 | . . . 1 . Swap 62 | 1 5 9 25 22 Drop 48 | 2 15 12 9 10 Fire 214 | 6 10 35 78 85 Melee . | . . . . . Ram . | . . . . . Kick 5 | . . . 1 4 Crush . | . . . . . Escape Stasis . | . . . . . Rewire . | . . . . . Trap . | . . . . . Miscellaneous . | . . . . . Route ------- -11/Scrapyard -10/Materials -9/Materials (discovered 2 exits: *Mat / Min) -8/Materials -7/Factory History --------- Turn | Location | Event 2 | -11/Scrapyard | Met Revision 17 75 | -11/Scrapyard | Discovered new exit (range 8) 116 | -11/Scrapyard | Entered Materials 315 | -10/Materials | Build established: Mutant 350 | -10/Materials | Discovered new exit (range 12) 482 | -10/Materials | Entered another Materials area 482 | -9/Materials | Evolved 2 slots: Propulsion x2 773 | -9/Materials | Identified exit to Mines 942 | -9/Materials | Repaired Imp. Ion Engine 968 | -9/Materials | Repaired Aluminum Leg 1005 | -9/Materials | Repaired Imp. Ion Engine 1387 | -9/Materials | Discovered new exit (range 4) 1394 | -9/Materials | Entered another Materials area 1394 | -8/Materials | Evolved 2 slots: Utility x2 1474 | -8/Materials | Build established: Scavenger-Mutant 1950 | -8/Materials | Repaired Lgt. Deuterium Engine 2703 | -8/Materials | Destroyed 7 combat bots 2898 | -8/Materials | Discovered new exit (range 3) 2941 | -8/Materials | Entered Factory 2941 | -7/Factory | Evolved 2 slots: Utility x1, Weapon x1 3318 | -7/Factory | Build established: Skirmisher 3355 | -7/Factory | Garrison activated, responded to threat 4011 | -7/Factory | Garrison activated, responded to threat 4199 | -7/Factory | Cargo convoy interrupted 4298 | -7/Factory | Self-destructed Last Messages --------------- U-05 Engineer lays Concrete. U-05 Engineer builds a Wall. U-05 Engineer lays Concrete. Minigun destroyed. U-05 Engineer builds a Wall. [Achievement: Remodeling] Rocket Launcher destroyed. U-05 Engineer lays Concrete. Carbon-fiber Leg destroyed. U-05 Engineer lays Concrete. The unstable cave ceiling collapses. Aluminum Leg destroyed. The unstable cave ceiling collapses. Y-54 Guardian emerges from the garrison. Nuclear Core destroyed. The unstable cave ceiling collapses. Aluminum Leg destroyed. Rocket Launcher destroyed. The unstable cave ceiling collapses. Aluminum Leg destroyed. Map ----- +----------------------------------------------------+ | ???????#??????#?###?#?# ## ##????? | | ????????#?##?? ???? ? """ == #????? | | ??????#?#?##?? ??? #? """ == #????? | | ???????#??##?# ? ??? """ = #????? | | ????????#?????? ??? ? #????? | | ?????????##??#? ? ?? """ """ #????? | | ????????????##? ? ? """ """ #????? | | ???????????#???#?##?# """ F" ###### | | ???????????#???#???# "" | | ?????????????????#?# | | ????????????????????# | | ????????????????#??? ###+############## | | ????????????????#??# # #???? | | ?????????????????? ? + #???? | | ???????????????????? # #???? | | ???????????????????? /# #???? | | ???????????????????? # #???? | | ????????????????????? *%######+########??? | | ?????????????????????? % = # #??? | | ?????????????????????? " # #??? | | ?????????????????????? "" # """ #??? | | ????????????????########### # """ #??? | | ????????????????? ! #u # """ #??? | | ????????????????# ""G"" # + #??? | | ????????????????# " " p # """ #??? | | ???????????????# Y ! @# # """ #??? | | ???????????# !# ##+###### """ #??? | | ???????????### / ### # # #??? | | ?????????????# Y !#?# # """ """ # #??? | | ????????????# = #?# # """ """ # #??? | | ????????????# # ###?# # """ """ #######??? | | ????????????# # # #????# # #????????? | | ????????????### #?????# # #????????? | | ?????????????### ###??????# # #????????? | | ???????????????####?????????? # !#????????? | | ????????????????????????????? ###########????????? | | ????????????????????????????? ???????????????????? | | ????????????????????????????? ???????????????????? | | ?????????????????????????????#???????????????????? | | ?????????????????????????????????????????????????? | | ?????????????????????????????????????????????????? | | ?????????????????????????????????????????????????? | | ?????????????????????????????????????????????????? | | | | | | | | | | | | | | | +----------------------------------------------------+ Best States ------------- Heat Dissipation 73 Energy Generation 14 Energy Capacity 265 Matter Stores 400 Matter Capacity 400 Sight Range 16 Terrain Scan Range 16 Terrain Scan Density 210 Armor Coverage 300 Resistance: KI 20 Resistance: TH 20 Resistance: EX 20 Resistance: EM 35 Resistance: I 20 Resistance: S 20 Resistance: P 20 Evasion (%) 55 Targeting Accuracy 16 Offensive Hacking 10 Item Schematics ----------------- Imp. Ion Engine | -9/Materials | Scanalyzed Structural Scanner | -9/Materials | Scanalyzed Spread Laser | -9/Materials | Scanalyzed Shield Generator | -8/Materials | Scanalyzed Lgt. Nuclear Core | -8/Materials | Scanalyzed Lgt. Deuterium Engine | -8/Materials | Scanalyzed Terrain Scan Processor | -8/Materials | Scanalyzed Med. Matter Pod | -8/Materials | Scanalyzed Insulated Plating | -8/Materials | Scanalyzed Field Laser | -8/Materials | Scanalyzed Robot Schematics ------------------ None Fabricated ------------ Nothing Alien Tech Used ----------------- None Achievements -------------- It's Just You Loot Pinata Omniscient Cartographer One Hack Too Far Part-time Mechanic Remodeling Troublemaker Uninvited Guest Challenges ------------ None Game ------ Seed FissionHybridDrive Manual? 0 Play Time 01:16:17 Cumulative 2.6 hours Start 2024.04.04 @ 13:41:47 End 2024.04.04 @ 15:02:24 Sessions 1 Manual Loads 0 Difficulty Adventurer Special Mode None Game No. 2 Rogue 0 Adventurer 2 Explorer 0 Win Type - Total 0 Types 0/0/0/0/0/0/0/0/0 Lore% 4 Gallery% 6 Achievement% 8 Wizard Run 0 Options --------- Layout 1 ASCII 0 Keyboard 0 Movement Mouse Keybinds 0 Fullscreen 1 Font 24/X11 Map View 50x35 Zoom Use 0% Tactical HUD 0 Map Filters NONE Filters NONE Steam 1 RUN: 07fe32b2-584f-495d-853d-7d6991cd3288